Cogmind - Beta 13 @@@ ROGUE MODE // 2024.04.19 @ 10:16:54 Player: m1m1c Result: Destroyed by G-34 Mercenary with Small Laser Performance ------------- Evolutions (1) 500 Regions Visited (4) 800 Robots Destroyed (80) 400 Value Destroyed (1909) 1909 Prototype IDs (4) 80 Alien Tech Used (0) 0 Bonus (76) 76 TOTAL SCORE: 3765 Bonus ------- High Alert Combat Kills 76 Cogmind --------- Core Integrity 0/400 Matter 22/300 Energy 73/100 System Corruption 0% Temperature Cool (7) Movement Treading (240) Ox1 Location -9/Storage Parts ------- > --- POWER (1) -------- (None) > --- PROPULSION (2) --- Improved Treads > --- UTILITY (4) ------ Large Storage Unit Improved Signal Interpreter Hacking Suite > --- WEAPON (2) ------- Improved Assault Rifle Mini Assault Cannon > --- INVENTORY (15) --- Light Treads Light Treads Light Treads Light Treads Light Treads Improved Treads Compact Wheel Advanced Beam Cannon Rocket Launcher Missile Launcher Missile Launcher Plasma Cutter Peak State ------------ > --- POWER ------------ Light Nuclear Core > --- PROPULSION ------- Improved Treads Improved Treads > --- UTILITY ---------- Large Storage Unit Improved Signal Interpreter Core Shielding Hacking Suite > --- WEAPON ----------- Mini Assault Cannon Missile Launcher > --- INVENTORY -------- Light Ion Engine Light Treads Light Treads Light Treads Light Treads Improved Treads Improved Treads Compact Wheel Advanced Beam Cannon Improved Assault Rifle Rocket Launcher Missile Launcher Missile Launcher Missile Launcher Plasma Cutter [Rating: 25] Favorites ----------- Power Light Nuclear Core Engine Ion Engine Power Core Light Nuclear Core Propulsion Light Treads Treads Light Treads Leg Aluminum Leg Utility Large Storage Unit Device High-powered Tractor Beam Storage Large Storage Unit Processor Improved Signal Interpreter Hackware Hacking Suite Protection Core Shielding Weapon Heavy Assault Rifle Energy Gun Small Laser Energy Cannon Beam Cannon Ballistic Gun Heavy Assault Rifle Ballistic Cannon Mini Assault Cannon Launcher Missile Launcher Build | -11 -10 -10 -9 -9 ------- Run | Yrd Mat Min Mat Sto Slots Evolved 2 | . . . 2 . Power . | . . . . . Propulsion . | . . . . . Utility 2 | . . . 2 . Weapon . | . . . . . Parts Attached 34 | . 9 1 13 11 Power 2 | . . 1 . 1 Engine 1 | . . . . 1 Core 1 | . . 1 . . Reactor . | . . . . . Propulsion 10 | . 2 . 3 5 Treads 10 | . 2 . 3 5 Leg . | . . . . . Wheel . | . . . . . Hover . | . . . . . Flight . | . . . . . Utility 10 | . 4 . 4 2 Device 3 | . 2 . . 1 Storage 3 | . 2 . 1 . Processor 1 | . . . 1 . Hackware 1 | . . . . 1 Protection 2 | . . . 2 . Artifact . | . . . . . Weapon 12 | . 3 . 6 3 Energy Gun 1 | . . . 1 . Energy Cannon 2 | . . . 2 . Ballistic Gun 6 | . 3 . 2 1 Ballistic Cannon 1 | . . . . 1 Launcher 2 | . . . 1 1 Special Weapon . | . . . . . Impact Weapon . | . . . . . Slashing Weapon . | . . . . . Piercing Weapon . | . . . . . Special Melee Weapon . | . . . . . Unidentified Prototypes 4 | . . . 3 1 Parts Lost 15 | . . . 4 11 Power 2 | . . . . 2 Propulsion 6 | . . . 2 4 Utility 4 | . . . 1 3 Weapon 3 | . . . 1 2 Highest Loss Streak 5 | . . . 4 5 To Critical Strikes . | . . . . . Average Slot Usage (%) 97 | . 98 100 93 96 Engine 6 | . 14 . . 4 Core 6 | . . 13 11 5 Treads 25 | . 28 28 21 21 Device 11 | . 12 14 11 4 Storage 13 | . 14 14 12 11 Processor 1 | . . . . 11 Hackware 1 | . . . . 8 Protection 4 | . . . 13 6 Energy Gun 2 | . 5 . . . Ballistic Gun 20 | . 22 28 20 3 Ballistic Cannon 1 | . . . . 8 Launcher 1 | . . . . 10 Naked Turns . | . . . . . Heaviest Build 38 | 13 32 32 38 36 Greatest Support 46 | 20 40 40 46 46 Greatest Overweight (x) 1 | . . . . 1 Average Overweight (x) . | . . . . . Largest Inventory Capacity 15 | . 15 15 15 15 Average Capacity 14 | . 13 15 15 15 Most Carried 15 | . 15 15 15 15 Average Carried 13 | . 12 14 14 13 Final Capacity 15 | 8 15 15 15 15 Final Carried 15 | 6 15 15 15 12 Class Distribution -------------------- 90% | Mutant 9% | Scavenger-Mutant Dominant Class ---------------- Mutant | -10/Materials Mutant | -10/Mines Mutant | -9/Materials Mutant | -9/Storage Resources | -11 -10 -10 -9 -9 ----------- Run | Yrd Mat Min Mat Sto Matter Collected 1542 | 200 487 114 532 209 Remotely 736 | . 61 114 522 39 Salvage Created 2500 | . 622 97 1275 506 Parts 174 | . 45 5 80 44 Haulers Intercepted 4 | . 2 . 2 . Recyclers Shooed 7 | . 6 . . 1 Parts Field Recycled . | . . . . . Retrieved Matter . | . . . . . Parts Self-Destructed . | . . . . . Prevented . | . . . . . Kills | -11 -10 -10 -9 -9 ------- Run | Yrd Mat Min Mat Sto Combat Hostiles Destroyed 46 | . 14 2 16 14 Guns 33 | . 14 2 14 3 Cannons 9 | . . . 2 7 AOE 3 | . . . . 3 Classes Destroyed 11 | . 7 . 4 . Worker 9 | . 2 . 5 2 Builder 5 | . . . 2 3 Hauler 4 | . 2 . 2 . Recycler 4 | . 1 . 3 . Mechanic 1 | . . . 1 . Operator 7 | . 2 . 2 3 Watcher 4 | . 2 . 1 1 Swarmer 6 | . 6 . . . Grunt 30 | . 8 2 12 8 Duelist 1 | . . . 1 . Sentry 9 | . . . 3 6 Best Kill Streak 10 | . 4 2 10 7 Combat Bots Only 5 | . 3 2 4 5 Max Kills in Single Turn 2 | . 1 1 2 2 Gunslinging . | . . . . . Exploded 1 | . . . . 1 Melee . | . . . . . Uniques/NPCs Destroyed . | . . . . . Combat | -11 -10 -10 -9 -9 -------- Run | Yrd Mat Min Mat Sto Hostile Shots Fired 295 | . 62 8 93 132 Missed 77 | . 16 . 31 30 Damage Taken 2883 | . 472 120 817 1474 Core 533 | . 111 15 79 328 Absorbed by Shields . | . . . . . Redirected to Shielding 35 | . . . 12 23 Core Remaining (%) 74 | 100 . 49 . . Volleys Fired 221 | . 64 7 79 71 Largest 2 | . 2 2 2 2 Hottest 91 | . 60 46 91 84 Shots Fired 380 | . 130 14 156 80 Gun 312 | . 130 14 136 32 Cannon 59 | . . . 20 39 Launcher 9 | . . . . 9 Special . | . . . . . Kinetic 337 | . 116 14 136 71 Thermal 34 | . 14 . 20 . Explosive 9 | . . . . 9 Electromagnetic . | . . . . . Robot Hit Streak 14 | . 10 4 14 9 Robot Miss Streak 3 | . 3 2 3 2 Penetration Max . | . . . . . Secondary Targets 3 | . 3 . . . Max Gunslinging Chain 1 | . 1 . . . Shots Hit Robots 234 | . 73 7 95 59 Core Hits 116 | . 40 3 45 28 Critical Kills . | . . . . . Critical Parts Destroyed 1 | . . . . 1 Critical Strikes 5 | . . . . 5 Destroy 1 | . . . . 1 Blast 4 | . . . . 4 Melee Attacks . | . . . . . Impact . | . . . . . Slashing . | . . . . . Piercing . | . . . . . Sneak Attacks . | . . . . . Combat Hostiles . | . . . . . Follow-up Attacks . | . . . . . Damage Inflicted 4610 | . 872 110 1658 1970 Guns 2713 | . 852 108 1378 375 Cannons 1027 | . . . 254 773 Explosions 804 | . . . . 804 Melee . | . . . . . Ramming 66 | . 20 2 26 18 Kinetic 3376 | . 742 108 1378 1148 Thermal 364 | . 110 . 254 . Explosive 804 | . . . . 804 Electromagnetic . | . . . . . Impact . | . . . . . Slashing . | . . . . . Piercing . | . . . . . Highest Corruption 2 | . 2 2 . . Average Corruption 2 | . 2 2 . . Corruption Purged . | . . . . . Corruption Blocked . | . . . . . Effects 22 | . 14 8 . . Message Errors 5 | . 3 2 . . Matter Fused 6 | . 3 3 . . Heat Flow Errors 3 | . 3 . . . Energy Discharges 3 | . 2 1 . . Data Loss (minor) 1 | . 1 . . . Data Loss (major) 2 | . . 2 . . Misfires 2 | . 2 . . . Overload Shots . | . . . . . Overflow Damage 71 | . . . . 71 Projectiles 47 | . . . . 47 Explosions 22 | . . . . 22 Melee 2 | . . . . 2 Knockbacks 3 | . 1 . . 2 Impact 1 | . 1 . . . Kinetic 2 | . . . . 2 Secondary . | . . . . . Self-Inflicted Damage 49 | . . . . 49 Shots 1 | . . . . 1 Rammed 25 | . 11 1 8 5 Targets Rammed 27 | . 12 1 8 6 Kicked . | . . . . . Crushed 2 | . 1 . . 1 Highest Temperature 342 | . 263 22 342 145 Average Temperature 75 | . 76 12 116 36 Received Heat Transfer 1191 | . 165 72 348 606 Effects 2 | . . . 2 . Energy Bleed 2 | . . . 2 . Siege Activations . | . . . . . Robots Corrupted . | . . . . . Combat Hostiles . | . . . . . Parts Fried . | . . . . . Impact Corruptions 1 | . . . . 1 Robots Melted . | . . . . . Combat Hostiles . | . . . . . Parts Melted 2 | . . . 2 . Heat Transferred 768 | . 250 . 518 . Parts Sabotaged . | . . . . . Parts Stolen . | . . . . . Parts Stripped . | . . . . . Power Chain Reactions . | . . . . . Alert | -11 -10 -10 -9 -9 ------- Run | Yrd Mat Min Mat Sto Peak Influence 691 | . 178 132 254 691 Initial 107 | . . 67 . 107 Average 149 | . 92 89 136 407 Maximum Alert Level 2 | . . . 1 2 Low Security (%) 79 | . 100 100 75 6 Level 1 13 | . . . 24 44 Level 2 7 | . . . . 49 Level 3 . | . . . . . Level 4 . | . . . . . Level 5 . | . . . . . High Security . | . . . . . Max Security . | . . . . . Squads Dispatched 11 | . 3 . 3 5 Investigation 2 | . 1 . 1 . Extermination . | . . . . . Reinforcement 7 | . 2 . 2 3 Assault 2 | . . . . 2 Garrison . | . . . . . Intercept . | . . . . . Searches Triggered . | . . . . . Construction Impeded 1 | . . . . 1 Haulers Reinforced . | . . . . . Active Scanning Responses . | . . . . . Cargo Convoy Interrupts . | . . . . . Stealth | -11 -10 -10 -9 -9 --------- Run | Yrd Mat Min Mat Sto Distress Signals 6 | . 2 . 4 . Communications Jammed . | . . . . . Distress Signals . | . . . . . Times Spotted 82 | . 25 1 26 30 Peak Tracking Total 10 | . 5 1 6 10 Tactical Retreats 3 | . . . 2 1 Traps | -11 -10 -10 -9 -9 ------- Run | Yrd Mat Min Mat Sto Traps Triggered 2 | . 2 . . . Indirectly . | . . . . . Trap Hack Attempts . | . . . . . Triggered . | . . . . . Disarmed . | . . . . . Reprogrammed . | . . . . . Reused . | . . . . . Traps Extracted . | . . . . . Installed . | . . . . . Triggered . | . . . . . Machines | -11 -10 -10 -9 -9 ---------- Run | Yrd Mat Min Mat Sto Machines Disabled 7 | . . 1 1 5 Max in Single Turn 3 | . . 1 1 3 Machines Repaired . | . . . . . Machines Dismantled . | . . . . . Machines Sabotaged . | . . . . . Overloaded Fab Kills . | . . . . . Hacking | -11 -10 -10 -9 -9 --------- Run | Yrd Mat Min Mat Sto Machines Accessed 11 | . 4 . 4 3 Terminals 11 | . 4 . 4 3 Fabricators . | . . . . . Repair Stations . | . . . . . Recycling Units . | . . . . . Scanalyzers . | . . . . . Garrison Access . | . . . . . Total Hacks 23 | . 10 . 8 5 Successful 6 | . 3 . 1 2 Failed 17 | . 7 . 7 3 Catastrophic 4 | . . . 2 2 Database Lockouts . | . . . . . Manual 20 | . 10 . 6 4 Terminals 23 | . 10 . 8 5 Fabricators . | . . . . . Repair Stations . | . . . . . Recycling Units . | . . . . . Scanalyzers . | . . . . . Garrison Access . | . . . . . Terminal Hacks 3 | . 1 . . 2 Open Door 1 | . . . . 1 Terminal Index 1 | . 1 . . . Recall Reinforcements 1 | . . . . 1 Fabricator Hacks . | . . . . . Repair Station Hacks . | . . . . . Recycling Unit Hacks . | . . . . . Scanalyzer . | . . . . . Garrison Access Hacks . | . . . . . Unauthorized Hacks 3 | . 2 . 1 . Terminals 3 | . 2 . 1 . Assimilate 1 | . 1 . . . Operators 2 | . 1 . 1 . Fabricators . | . . . . . Repair Stations . | . . . . . Recycling Units . | . . . . . Scanalyzers . | . . . . . Garrison Access . | . . . . . Data Cores Recovered 1 | . . . . 1 Used . | . . . . . Hacking Detections 9 | . 3 . 4 2 Full Trace Events 1 | . . . 1 . Feedback Events . | . . . . . Feedback Blocked . | . . . . . Robot Schematics Acquired . | . . . . . Robots Built . | . . . . . Authchips . | . . . . . Time . | . . . . . Total Robot Build Rating . | . . . . . Part Schematics Acquired . | . . . . . Parts Built . | . . . . . Authchips . | . . . . . Time . | . . . . . Total Part Build Rating . | . . . . . Parts Repaired . | . . . . . Time . | . . . . . Parts Recycled . | . . . . . Recycled Matter . | . . . . . Retrieved Matter . | . . . . . Retrieved Components . | . . . . . Parts Scanalyzed . | . . . . . Part Schematics Acquired . | . . . . . Parts Damaged . | . . . . . Bothacking | -11 -10 -10 -9 -9 ------------ Run | Yrd Mat Min Mat Sto Used RIF Installer . | . . . . . Robots Hacked . | . . . . . Non-combat . | . . . . . Combat . | . . . . . Robot Hacks Applied . | . . . . . Relay Couplers Released . | . . . . . Fabnet Peak Effective % . | . . . . . Robots Rewired . | . . . . . Allies Hacked . | . . . . . Hacks Repelled . | . . . . . Allies | -11 -10 -10 -9 -9 -------- Run | Yrd Mat Min Mat Sto Total Allies 2 | . . . . 2 Largest Group 2 | . . . . 2 Highest-Rated Group 62 | . . . . 62 Highest-Rated Ally 31 | . . . . 31 Total Orders . | . . . . . Ally Attacks 5 | . . . . 5 Total Damage 66 | . . . . 66 Kills 1 | . . . . 1 Allies Corrupted . | . . . . . Allies Melted . | . . . . . Intel | -11 -10 -10 -9 -9 ------- Run | Yrd Mat Min Mat Sto Robot Analysis Total . | . . . . . Derelict Logs Recovered 1 | . . 1 . . Drone Launches . | . . . . . Drone Recoveries . | . . . . . Exploration | -11 -10 -10 -9 -9 ------------- Run | Yrd Mat Min Mat Sto Turns Passed 3432 | . 1379 582 979 492 Spaces Moved 1617 | 1 717 349 363 187 Core . | . . . . . Treads 1616 | . 717 349 363 187 Legs 1 | 1 . . . . Wheels . | . . . . . Hover . | . . . . . Flight . | . . . . . Fastest Speed 120 | 120 160 160 160 160 Average Speed 160 | 120 160 160 160 162 Slowest Speed 240 | 120 160 160 160 240 Overloaded Moves . | . . . . . Propulsion Burnouts . | . . . . . Robots Hopped . | . . . . . Cave-ins Triggered . | . . . . . Exploration Rate (%) 46 | 1 90 74 30 38 Regions Visited 4 Branch Regions 2 Pre-discovered Areas . | . . . . . Known Exits Taken 1 | . . . 1 . Unknown Exits Taken 3 | 1 1 1 . . Scrap Searched 1 | . . 1 . . Spaces Dug . | . . . . . Terrain Destroyed 92 | . . . . 92 Melee . | . . . . . Projectile 4 | . . . . 4 AOE 88 | . . . . 88 Terrain Rammed . | . . . . . Walls Destroyed . | . . . . . Machines Disabled . | . . . . . Actions | -11 -10 -10 -9 -9 --------- Run | Yrd Mat Min Mat Sto Total 2079 | . 826 360 602 291 Wait 131 | . . . 124 7 Move 1613 | . 716 348 362 187 Hop . | . . . . . Pick Up 26 | . 14 1 5 6 Fast Attach 16 | . 5 . 8 3 Attach 14 | . 2 . 4 8 Detach 3 | . . . 3 . Swap 4 | . 2 1 1 . Drop 24 | . 11 2 8 3 Fire 221 | . 64 7 79 71 Melee . | . . . . . Ram . | . . . . . Kick . | . . . . . Crush 27 | . 12 1 8 6 Escape Stasis . | . . . . . Rewire . | . . . . . Trap . | . . . . . Miscellaneous . | . . . . . Route ------- -11/Scrapyard -10/Materials (discovered 4 exits: *Mat x2 / [*Min x2]) -10/Mines -9/Materials (discovered 2 exits: [*Min] / *Sto) -9/Storage History --------- Turn | Location | Event 1 | -11/Scrapyard | Discovered new exit (range 0) 1 | -11/Scrapyard | Entered Materials 305 | -10/Materials | Build established: Mutant 374 | -10/Materials | Discovered new exit (range 5) 604 | -10/Materials | Discovered new exit (range 16) 1055 | -10/Materials | Discovered new exit (range 10) 1241 | -10/Materials | Discovered new exit (range 16) 1380 | -10/Materials | Entered Mines 1391 | -10/Mines | Core integrity fell below 50% 1431 | -10/Mines | Learned Materials terminal intel 1677 | -10/Mines | Received a Rocket Launcher from a helpful Derelict 1950 | -10/Mines | Discovered new exit (range 8) 1962 | -10/Mines | Entered Materials 1962 | -9/Materials | Evolved 2 slots: Utility x2 1963 | -9/Materials | Loaded intel: 10 terminal locations 2687 | -9/Materials | Build established: Scavenger-Mutant 2769 | -9/Materials | Lost 4 parts (2n1u1w) 2828 | -9/Materials | Discovered new exit (range 16) 2891 | -9/Materials | Identified exit to Storage 2901 | -9/Materials | Discovered new exit (range 9) 2941 | -9/Materials | Entered Storage 3035 | -9/Storage | Build established: Mutant 3263 | -9/Storage | Lost 4 parts (1p2n1u) 3313 | -9/Storage | Core integrity fell below 50% 3353 | -9/Storage | Met a pair of Derelict thieves 3418 | -9/Storage | Core integrity fell below 20% 3433 | -9/Storage | Destroyed by G-34 Mercenary with Small Laser Last Messages --------------- K-01 Serf collects debris. Lgt. Ion Engine destroyed. U-05 Engineer builds a Wall. Slammed into G-34 Mercenary. Sensor Array destroyed. K-01 Serf collects debris. U-05 Engineer lays Concrete. K-01 Serf collects debris. U-05 Engineer lays Concrete. U-05 Engineer builds a Wall. K-01 Serf collects debris. Missile Launcher destroyed. Imp. Treads destroyed. U-05 Engineer lays Concrete. K-01 Serf collects debris. U-05 Engineer lays Concrete. U-05 Engineer builds a Wall. K-01 Serf collects debris. Imp. Treads severed. K-01 Serf collects debris. Map ----- +----------------------------------------------------+ | | | | | | | | | | | | | | | | | | | | | | | | | | | | | | | ????????????????????????????????????????????? | | ????????????????????????????????????????????? | | ????????????????????????????????????????????? | | ????????????????????????????????????????????? | | ????????????####################????????????? | | ???????????? #????????????? | | ??????????? #????????????? | | ?????????????? #????????????? | | ????????????????? #????????????? | | ????????????????????# ^ #????????????? | | ????????????????????# @ [[ #?????????????? | | ????????????????????# [[ #?????????????? | | ????????????????##### l [[ #?????????????? | | ????????????? + ^ #########?????? | | ???????????? ##### % ggga # # = #?????? | | ????????????????????# g i=# " #?????? | | ????????????????????# [%!%= #?????? | | ????????????????????# !=[ " #?????? | | ????????????????????# g !##T# == #?????? | | ????????????????????# !# ## = =#?????? | | ????????????????????## ####k# ########?????? | | ?????????????????????## #u# ##???????????? | | ?????????????????###### #%### ?????????? | | ????????# ###### ##### """ ?????? | | ?????? % % """ Y"??? | | ?????????????##### % ###### # """ "???? | | ?????????????????## ####?## # #???? | | ????????????????###/# T#### # """ ????? | | ????????????????##!%= ## # """ ?????? | | ?????????????####"%= ## ""# """ ?????? | | ???????????? # % ## T"#? ??????? | | ????????? = ##! ""??###+###????? | | ???????? """"" # # ??# #????? | | ?????????????" ## * ######### #????? | | ?????????????" # %! # % #????? | +----------------------------------------------------+ Best States ------------- Heat Dissipation 28 Energy Generation 14 Energy Capacity 250 Matter Stores 500 Matter Capacity 500 Sight Range 16 Robot Scan Range 14 Terrain Scan Density 10 Armor Coverage 150 Core Shielding 20 Evasion (%) 40 Recoil Reduction 2 Offensive Hacking 10 Item Schematics ----------------- None Robot Schematics ------------------ None Fabricated ------------ Nothing Alien Tech Used ----------------- None Achievements -------------- None Challenges ------------ None Game ------ Seed CommLobotomyFirepult Manual? 0 Play Time 00:20:56 Cumulative 44.5 hours Start 2024.04.19 @ 09:52:25 End 2024.04.19 @ 10:16:54 Sessions 1 Manual Loads 0 Difficulty Rogue Special Mode None Game No. 102 Rogue 100 Adventurer 0 Explorer 2 Win Type - Total 0 Types 0/0/0/0/0/0/0/0/0 Lore% 19 Gallery% 37 Achievement% 31 Wizard Run 0 Options --------- Layout 1 ASCII 1 Keyboard 0 Movement Arrows Keybinds 1 Fullscreen 1 Font 18/SmallcapsGlow Map View 50x40 Zoom Use 0% Tactical HUD 0 Map Filters NONE Filters NONE Steam 1 RUN: f5655526-df2f-4f4f-8a36-ece55a124aa0